[Event "ESP-ch Teams Primera 2022"]
[Site "Sanxenxo Pontevedra"]
[Date "2022.09.21"]
[Round "5.17"]
[White "Quintin Navarro, Alberto"]
[Black "Gomez Dieguez, David"]
[Result "1-0"]
[ECO "A46"]
[WhiteElo "2372"]
[BlackElo "2332"]
[Annotator "TA"]
[PlyCount "88"]
[EventDate "2022.09.17"]
[EventType "team-tourn"]
[EventCountry "ESP"]
[SourceTitle "playchess.com"]
[Source "ChessBase"]
[SourceQuality "1"]
[TimeControl "5400+30"]

{[%evp 17,88,0,4,0,11,-18,-13,-18,12,6,5,-17,-12,-18,0,0,0,0,8,6,9,4,2,-7,0,0,0,0,0,-41,19,20,20,19,17,12,15,4,3,0,14,22,79,72,87,91,122,35,112,112,130,143,180,184,191,170,209,202,254,163,166,169,169,176,177,172,164,142,144,139,137,0,1145]} 1. d4 Nf6 2. Nf3 e6 3. c4 d5 4. g3 Bb4+ 5. Nbd2 O-O 6. Bg2 b6 7. O-O Bb7 8. cxd5 exd5 9. Ne5 Re8 10. Ndf3 {E16: Queen's Indian: 4 g3 Bb7 5 Bg2 Bb4+.} Bf8 11. Qc2 c5 {[#]} 12. Bf4 $146 ({Predecessor:} 12. b3 Nc6 13. Nxc6 Bxc6 14. Bb2 Rc8 15. dxc5 bxc5 16. Ne5 Ba8 17. Rfd1 d4 18. Bxa8 Rxa8 {0-1 (62) Molchanov,A (2334)-Swiercz,D (2649) Chess.com INT 2017}) 12... Nbd7 13. Ng5 Re7 14. Rfe1 h6 15. Ngf3 {[%cal Bg5f3,Bf3d4,Bd4b5,Bb5d6][%mdl 32]} cxd4 16. Nxd7 Qxd7 17. Nxd4 Ne4 18. Rac1 Rc8 19. Qd3 Ree8 20. Qb5 Qxb5 21. Nxb5 Bc5 22. Bxe4 dxe4 23. Bd6 Bxd6 (23... Ba6 $15 24. Nc7 Bxd6 25. Nxa6 f5) 24. Nxd6 $11 Rxc1 25. Rxc1 $15 {[%mdl 4096] Endgame KRB-KRN} Re7 26. e3 Rd7 27. Rd1 Bc6 28. g4 g6 (28... Kf8 $5 {[%cal Rg7g6]}) 29. Rd2 {[%cal Od6e4]} Re7 (29... f5 $11 {keeps the balance.}) 30. Kg2 $1 $16 Re5 31. Kg3 h5 32. Kf4 (32. Rc2 $16 Bd5 33. Rc8+ Kh7 34. Rc7) 32... f6 {[#]} ({Black should play} 32... Ra5 $14) 33. h4 $1 hxg4 {[#]} 34. Rc2 $1 Bd5 35. Rc8+ Kh7 36. Rc7+ Kh6 37. Rxa7 Rh5 38. Kxg4 Be6+ 39. Kg3 g5 40. hxg5+ ({Don't do} 40. Nxe4 $6 gxh4+ 41. Kh2 Rf5 $14) 40... Rxg5+ 41. Kh2 Rh5+ 42. Kg1 Rg5+ 43. Kf1 Bh3+ 44. Ke2 {White is more active.} (44. Ke1 $16 {aiming for Nf7+.} Rg1+ 45. Kd2) 44... f5 $2 {[%mdl 8192] Weighted Error Value: White=0.14 (very precise) /Black=0.15 (very precise)} (44... Bg4+ $11 45. Kf1 (45. Ke1 $2 Rd5 $19) 45... Rh5) 1-0

[Event "ESP-ch Teams Primera 2022"]
[Site "Sanxenxo Pontevedra"]
[Date "2022.09.21"]
[Round "5.18"]
[White "Hernandez Estevez, Yudania"]
[Black "Vega Gutierrez, Sabrina"]
[Result "0-1"]
[ECO "B80"]
[WhiteElo "2199"]
[BlackElo "2395"]
[Annotator "TA"]
[PlyCount "112"]
[EventDate "2022.09.17"]
[EventType "team-tourn"]
[EventCountry "ESP"]
[SourceTitle "playchess.com"]
[Source "ChessBase"]
[SourceQuality "1"]
[TimeControl "5400+30"]

{[%evp 34,112,56,58,56,49,62,69,69,64,59,61,56,58,66,56,68,31,41,47,39,31,42,39,69,39,42,16,31,31,31,30,31,31,38,24,54,22,24,0,0,-34,-34,-34,0,0,0,-34,-34,-120,-109,-559,-559,-559,-559,-559,-559,-348,-337,-4747,-4828,-4876,-4865,-4858,-4850,-4828,-4828,-4830,-4839,-4860,-4758,-1052,-559,-559,-559,-1672,-1299,-5065,-2321,-29981,-29981]} 1. e4 c5 2. Nf3 e6 3. d4 cxd4 4. Nxd4 Nf6 5. Nc3 d6 6. g3 Nc6 7. Bg2 Bd7 8. O-O Be7 9. Re1 O-O 10. a4 Nxd4 11. Qxd4 Bc6 12. Be3 a6 13. a5 Nd7 14. Qd1 Qc7 15. Na4 Rae8 16. Nb6 Nxb6 17. Bxb6 Qd7 18. c4 f5 {B80: Sicilian Scheveningen: 6 g3 and 6 Be3, including English Attack.} 19. Qd3 fxe4 20. Bxe4 Bxe4 {White is slightly better.} 21. Rxe4 {[#]} Rf6 $146 ({Predecessor:} 21... Rf5 22. Rae1 Bf6 23. R4e2 d5 24. cxd5 Rxd5 25. Qb3 Kf7 26. Qc2 g6 27. b4 Rc8 28. Bc5 Rc6 {½-½ (41) Markidis,K (2358)-Vragoteris,A (2333) Ermioni Argolidas 2005}) 22. Rd1 Bf8 23. b4 Rf5 24. Rb1 Qf7 25. Kg2 d5 26. cxd5 Rxd5 27. Rd4 Rxd4 28. Qxd4 Rc8 29. Qe4 (29. Rd1 {seems wilder.} Qf5 30. Qd7 Qe4+ 31. Kg1) 29... Qd7 30. Rb3 (30. b5 $5) 30... Qc6 31. Qxc6 Rxc6 $14 {[%mdl 4096] Endgame KRB-KRB} 32. b5 axb5 33. Rxb5 Be7 34. Kf3 Kf7 35. h4 Rc4 36. Be3 Rb4 37. Rxb4 Bxb4 $11 {KB-KB} 38. Bb6 e5 39. Ke4 Ke6 40. Bc7 g6 {[%cal Bg7g6,Bg6h5][%mdl 32]} 41. h5 (41. g4 $15) 41... gxh5 $17 42. a6 $2 {[%mdl 8192] This move loses the game for White.} (42. Bxe5 $17 Bxa5 43. Bf4) 42... bxa6 $19 {[%cal Bb7a6,Ba6a5,Ba5a4][%mdl 32]} 43. Bxe5 a5 44. f4 a4 {[#] aiming for ...a3.} 45. Bb2 Bd6 46. f5+ $2 (46. Bc1) 46... Kf7 47. Kf3 h6 48. Kg2 Be7 49. Kh3 Bf6 ({Not} 49... a3 50. Bxa3 Bxa3 51. g4 $19) 50. Ba3 Bg5 51. Bb2 Ke7 52. Kg2 Kd6 {[#] Strongly threatening ...Ke7.} 53. Kf3 Kd5 54. Ke2 Bd8 {Threatens to win with ...Bc7.} ({Wrong is} 54... h4 $2 55. gxh4 Bxh4 56. Kf3 $19) 55. Bc1 Ke5 (55... Ke4 $142 56. Kf2 Kxf5) 56. Bxh6 a3 {Weighted Error Value: White=0.91/Black=0.25 (precise)} 0-1

[Event "ESP-ch Teams Primera 2022"]
[Site "Sanxenxo Pontevedra"]
[Date "2022.09.21"]
[Round "5.19"]
[White "Espinosa Aranda, Angel"]
[Black "Reinaldo Castineira, Roi"]
[Result "1/2-1/2"]
[ECO "A46"]
[WhiteElo "2428"]
[BlackElo "2496"]
[Annotator "TA"]
[PlyCount "61"]
[EventDate "2022.09.17"]
[EventType "team-tourn"]
[EventCountry "ESP"]
[SourceTitle "playchess.com"]
[Source "ChessBase"]
[SourceQuality "1"]
[TimeControl "5400+30"]

{[%evp 25,61,-9,-10,-13,-4,-17,-20,-13,-7,-6,-4,-12,-12,-5,-5,-5,-6,-5,-4,-5,-4,-8,0,0,0,0,0,0,0,0,0,0,0,0,0,0,0,0]} 1. d4 Nf6 2. Nf3 e6 3. e3 a6 4. c4 d5 5. Nc3 c5 6. dxc5 Bxc5 7. a3 dxc4 8. Qxd8+ Kxd8 9. Bxc4 b5 10. Be2 Bb7 11. O-O Ke7 12. b4 Bd6 13. Bb2 Nbd7 {The position is equal.} 14. Rfd1 {D27: Queen's Gambit Accepted: Classical main line: 7 e4!? and 7 a4.} Rac8 {[#]} 15. a4 $146 ({Predecessor:} 15. Nd4 Nb6 16. Nb3 Ne4 17. Nxe4 Bxe4 18. Bd3 Bd5 19. Nd2 Na4 20. Bxg7 Rhg8 21. e4 Rxg7 22. exd5 Nb2 23. Ne4 Nxd1 24. Nxd6 Kxd6 25. Rxd1 exd5 26. Be4 {0-1 (26) Vishwa,V (2070)-Szeberenyi,A (2373) Balatonlelle 2019}) 15... Bxb4 {[#] Strongly threatening ...Bxf3.} 16. Na2 Bd6 17. axb5 axb5 18. Bxb5 Rc2 19. Rd2 {[#]} Rxb2 20. Rxb2 {aiming for Nd4.} Bxf3 21. gxf3 Be5 22. Rab1 {And now Rc2 would win.} Bxb2 23. Bxd7 Nxd7 24. Rxb2 Rb8 25. Rxb8 Nxb8 $11 {[%mdl 4096] Endgame KN-KN} 26. Nc3 Nd7 27. f4 e5 28. fxe5 Nxe5 29. Kg2 Ke6 30. Kg3 f5 31. h4 {A balanced but interesting game.  Weighted Error Value: White=0.02 (flawless) /Black=0.02 (flawless)} 1/2-1/2

[Event "ESP-ch Teams Primera 2022"]
[Site "Sanxenxo Pontevedra"]
[Date "2022.09.21"]
[Round "5.20"]
[White "Suarez Gomez, Julio"]
[Black "Rubio Mejia, Luis Ignacio"]
[Result "1-0"]
[ECO "B42"]
[WhiteElo "2440"]
[BlackElo "2399"]
[Annotator "TA"]
[PlyCount "52"]
[EventDate "2022.09.17"]
[EventType "team-tourn"]
[EventCountry "ESP"]
[SourceTitle "playchess.com"]
[Source "ChessBase"]
[SourceQuality "1"]
[TimeControl "5400+30"]

{[%evp 13,52,37,42,16,27,26,55,33,62,63,89,0,58,43,41,12,73,50,56,34,104,27,27,12,132,96,117,127,130,134,97,102,152,78,84,75,74,63,1695,1691,2460]} 1. e4 c5 2. Nf3 e6 3. d4 cxd4 4. Nxd4 a6 5. Bd3 Bc5 6. Nb3 Be7 7. Nc3 d6 8. Qe2 {B42: Sicilian: Kan Variation: 5 Bd3.} Nd7 9. f4 Qc7 10. Be3 {White is slightly better.} Ngf6 11. g4 {[%cal Bg2g4,Bg4g5][%mdl 32] [#] aiming for g5.} g6 $146 ({Predecessor:} 11... h6 12. h4 b5 13. a3 Bb7 14. O-O-O h5 15. g5 Ng4 16. Bd2 Nc5 17. Kb1 Nxd3 18. cxd3 {0-1 (30) Janetschek,K (2283)-Wiedner,R (2180) Austria 2000}) 12. Nd1 (12. Rf1 $16) 12... b6 ({Black should play} 12... e5 $11) 13. g5 Nh5 14. Rf1 Bb7 (14... h6 $11 {keeps the balance.}) 15. Nf2 h6 16. gxh6 $1 {Hoping for f5.} Ndf6 {[#]} (16... Nhf6 $14) 17. Bd2 (17. O-O-O $1 $16) 17... e5 $1 $11 18. Nh3 Nxf4 (18... Bc8 $11 19. Qg2 Bf8) 19. Nxf4 $16 exf4 20. Bxf4 {[%cal Bd2f4,Bf4e3,Be3d4][%mdl 32]} Nh5 21. Be3 $36 {[%mdl 2048] Keeping Black busy.} Bh4+ 22. Kd2 O-O (22... Qe7 $142) 23. Qg4 (23. Rg1 $142 {Strongly threatening Qxh5.} Nf6 24. Raf1) 23... Qe7 24. Rad1 {White is much more active. The black rooks are badly placed.} ({Reject} 24. Bxb6 Bg5+ 25. Kd1 (25. Be3 Bxe3+ 26. Kxe3 d5 $15) 25... Bxh6 $11) 24... Nf6 25. h7+ Kh8 $2 {[%mdl 8192] [#]} (25... Nxh7 $14 26. Kc1 (26. Bxb6 Bg5+ 27. Be3 Bxe3+ 28. Kxe3 Nf6 $15) 26... Bg5 27. Bxg5 Qxg5+ 28. Qf4 Qxf4+ 29. Rxf4 Ng5) 26. Bd4 $18 Bc8 {Weighted Error Value: White=0.24 (precise) /Black=0.27 (precise)} 1-0

[Event "ESP-ch Teams Primera 2022"]
[Site "Sanxenxo Pontevedra"]
[Date "2022.09.21"]
[Round "5.21"]
[White "Almagro Llamas, Pablo"]
[Black "Laiz Ibanez, Hector"]
[Result "1-0"]
[ECO "D37"]
[WhiteElo "2407"]
[BlackElo "2327"]
[Annotator "TA"]
[PlyCount "89"]
[EventDate "2022.09.17"]
[EventType "team-tourn"]
[EventCountry "ESP"]
[SourceTitle "playchess.com"]
[Source "ChessBase"]
[SourceQuality "1"]
[TimeControl "5400+30"]

{[%evp 9,89,0,34,34,44,44,44,39,37,45,43,33,38,28,39,10,16,13,16,17,21,13,23,22,22,0,13,-16,-31,-68,-69,-59,-34,-17,0,-89,-97,-109,-54,-77,-86,-156,-29,-63,-48,-68,-80,-180,-119,-121,-39,-38,0,-85,0,-225,-190,-190,-183,-173,-184,-871,-859,-1038,-1024,-1032,-1029,-1694,-1677,-1468,-1075,-2273,-1056,-1034,-1015,-964,-640,-1347,29985,29986,29986,29986]} 1. d4 {[%emt 0:00:05]} Nf6 {[%emt 0:00:11]} 2. Nf3 {[%emt 0:00:17]} d5 {[%emt 0:00:22]} 3. c4 {[%emt 0:00:38]} e6 {[%emt 0:00:10]} 4. Nc3 {[%emt 0:00:46]} dxc4 {[%emt 0:00:26]} 5. e4 {[%emt 0:00:55]} b5 {[%emt 0:00:22]} (5... Bb4 $5 {[%cal Rf6e4]}) 6. e5 {[%emt 0:00:58] D24: Queen's Gambit Accepted: 3 Nf3 Nf6 4 Nc3.} Nd5 {[%emt 0:00:10]} 7. Nxb5 {[%emt 0:00:37]} Nb6 {[%emt 0:00:07]} 8. Be2 {[%emt 0:02:01] White is slightly better.} Nc6 {[%emt 0:02:33][%cal Bb8c6,Bc6a5,Ba5b3][%mdl 32]} 9. O-O {[%emt 0:01:33]} Be7 {[%emt 0:00:16]} 10. Be3 {[%emt 0:01:33] 10.Qd2 injects fresh life into this line.} O-O {[%emt 0:00:27]} 11. Nc3 {[%emt 0:17:51]} Rb8 {[%emt 0:10:28]} 12. a3 {[%emt 0:02:13]} Na5 {[%emt 0:10:34]} 13. Qc2 {[%emt 0:01:21]} Bb7 {[%emt 0:08:55][%cal Bc8b7,Bb7c6,Bc6a4][%mdl 32]} 14. Rad1 {[%emt 0:02:08] [#]} Bc6 $146 {[%emt 0:05:16]} ({Predecessor:} 14... h6 15. Nd2 Qd7 16. f4 Nd5 17. Nxd5 Bxd5 18. Qc3 Rb5 19. Nxc4 Nxc4 20. Bxc4 Bxc4 21. Qxc4 Rxb2 {½-½ (61) Mamedyarov,S (2801)-Caruana,F (2822) Saint Louis 2018}) 15. Nd2 {[%emt 0:19:03]} Qd7 {[%emt 0:09:10]} 16. Rb1 {[%emt 0:01:32]} Rfd8 {[%emt 0:07:14]} 17. Nce4 {[%emt 0:10:26]} Nb3 {[%emt 0:06:56]} 18. Nf3 {[%emt 0:04:51]} h6 {[%emt 0:00:28]} 19. Rfd1 {[%emt 0:05:38]} Ba4 $1 {[%emt 0:04:48][%cal Ob3d4]} 20. Qc3 {[%emt 0:01:25]} Nd5 {[%emt 0:03:13]} 21. Qe1 {[%emt 0:00:10]} Nb6 {[%emt 0:05:15]} 22. d5 {[%emt 0:13:48]} (22. Qc3 $11 {remains equal.}) 22... exd5 $17 {[%emt 0:03:33]} 23. Bxb6 {[%emt 0:00:59]} cxb6 {[%emt 0:14:19]} (23... Rxb6 $17 24. Bxc4 Qc6 25. Bxb3 Bxb3) 24. Nc3 {[%emt 0:05:27]} Qc6 {[%emt 0:00:38]} 25. e6 {[%emt 0:00:39]} (25. Nd4 $142 Nxd4 26. Rxd4) 25... fxe6 {[%emt 0:00:47]} (25... Bf6 $17 26. Bf1 Rb7 27. Nxa4 Qxa4) 26. Ne5 {[%emt 0:00:12] Pair of Knights!} Qe8 {[%emt 0:02:43] Strongly threatening ...Bf6.} 27. Nxa4 {[%emt 0:02:15]} Qxa4 {[%emt 0:00:01]} 28. Bh5 {[%emt 0:00:24]} (28. Bg4 $17 {was worth a try.} Nc5 29. Ng6) 28... Rd6 {[%emt 0:02:00]} ({Better is} 28... Nc5 $19 29. Bf7+ Kf8) 29. Nf7 {[%emt 0:02:37]} Rc6 {[%emt 0:02:43]} (29... Qd7 $17 30. g3 Bf6 31. Nxd6 Qxd6) 30. Ne5 $15 {[%emt 0:00:13]} Rd6 {[%emt 0:00:06]} (30... Nc5 $15 {feels stronger.}) 31. Nf7 $1 $17 {[%emt 0:00:08]} Rc6 {[%emt 0:00:11]} (31... Qd7 $17 {...Rf8 is the strong threat.} 32. g3 Bf6 33. Nxd6 Qxd6) 32. Rxd5 $2 {[%emt 0:01:08]} exd5 {[%emt 0:00:02]} 33. Qxe7 {[%emt 0:00:08]} Rf6 {[%emt 0:01:19]} 34. Ne5 {[%emt 0:01:18]} Nc5 {[%emt 0:01:01] Prevents Nd7.} 35. g4 $2 {[%emt 0:02:02]} (35. Ng4 Rc6 36. Be8 Rxe8 37. Qxe8+ Kh7 38. Qe5) 35... Qc2 $19 {[%emt 0:00:33][%csl LRb1,LRf2]} 36. Rf1 {[%emt 0:00:01]} Rbf8 {[%emt 0:00:34][%cal Rf6f2]} 37. f3 {[%emt 0:00:08]} Qxb2 {[%emt 0:00:33] aiming for ...Ne6.} 38. h4 {[%emt 0:00:07]} Qd4+ {[%emt 0:00:27]} 39. Kg2 {[%emt 0:00:15]} c3 {[%emt 0:00:31]} 40. Rf2 {[%emt 0:00:44][%cal Bf1f2,Bf2e2,Be2e8][%mdl 32]} Nd3 {[%emt 0:00:16]} 41. Nxd3 {[%emt 0:00:12]} Qxd3 {[%emt 0:00:02]} 42. g5 {[%emt 0:00:12]} Rc6 {[%emt 0:01:06]} 43. Re2 {[%emt 0:00:42] [#]} c2 $4 {[%emt 0:00:28][%mdl 8192] [#]} (43... Qxe2+ $3 $19 {[%mdl 512]} 44. Qxe2 c2) 44. Qxf8+ $3 {[%emt 0:00:08][%mdl 512]} Kh7 {[%emt 0:00:20]} 45. Re8 {[%emt 0:00:59] What a bad dream for Black.  Weighted Error Value: White=0.83/Black=0.66} 1-0

[Event "ESP-ch Teams Primera 2022"]
[Site "Sanxenxo Pontevedra"]
[Date "2022.09.21"]
[Round "5.22"]
[White "Abal Cores, Lucas"]
[Black "Garcia Cuenca, Victor"]
[Result "1-0"]
[ECO "B90"]
[WhiteElo "2291"]
[BlackElo "2369"]
[Annotator "TA"]
[PlyCount "97"]
[EventDate "2022.09.17"]
[EventType "team-tourn"]
[EventCountry "ESP"]
[SourceTitle "playchess.com"]
[Source "ChessBase"]
[SourceQuality "1"]
[TimeControl "5400+30"]

{[%evp 12,97,20,-27,-22,-27,-28,-35,-25,-31,-16,-25,40,16,65,70,67,65,79,73,74,75,155,129,227,210,206,203,247,219,271,260,279,268,256,199,244,235,238,206,181,204,191,172,173,159,171,137,136,140,135,132,181,102,85,76,186,129,501,501,468,461,616,615,600,522,602,596,541,264,455,433,627,596,758,336,702,700,697,679,3166,2337,29983,29984,29984,29985,29984,508]} 1. e4 {[%emt 0:00:06]} c5 {[%emt 0:00:05]} 2. Nf3 {[%emt 0:00:06]} d6 {[%emt 0:00:12]} 3. d4 {[%emt 0:00:06]} cxd4 {[%emt 0:00:05]} 4. Nxd4 {[%emt 0:00:05]} Nf6 {[%emt 0:00:07]} 5. Nc3 {[%emt 0:00:09]} a6 {[%emt 0:00:18]} 6. Be3 {[%emt 0:00:36]} e6 {[%emt 0:00:11]} 7. h3 {[%emt 0:02:11]} (7. a3 $142) 7... b5 $11 {[%emt 0:02:31] B90: Sicilian Najdorf: Unusual White 6th moves, 6 Be3 Ng4 and 6 Be3 e5.} 8. a3 {[%emt 0:02:13]} Bb7 {[%emt 0:00:11]} 9. Bd3 {[%emt 0:06:01]} Nbd7 {[%emt 0:01:09] Black is slightly better.} 10. f4 {[%emt 0:09:22]} Nc5 {[%emt 0:12:02]} 11. Qf3 {[%emt 0:00:45] [#]} h5 $146 {[%emt 0:09:33]} (11... Be7 $11) ({Predecessor:} 11... Be7 12. O-O O-O 13. Rae1 Re8 14. Bf2 Rc8 15. Qg3 Bf8 16. e5 dxe5 17. fxe5 Nd5 {0-1 (47) Przybylski,W (2321)-Grigoriants,S (2546) Chess.com INT 2020}) 12. O-O {[%emt 0:11:09]} h4 {[%emt 0:00:46]} (12... Rc8 $11) 13. b4 $14 {[%emt 0:00:51]} Nxd3 {[%emt 0:00:17]} 14. cxd3 {[%emt 0:00:05]} Rc8 {[%emt 0:16:53]} 15. Rac1 {[%emt 0:01:17] White is more active.} Qd7 {[%emt 0:02:05]} 16. Qf2 {[%emt 0:02:43]} Rh5 {[%emt 0:09:32]} (16... Be7 $142) 17. f5 {[%emt 0:05:44]} Be7 {[%emt 0:19:13]} (17... e5 $16) 18. fxe6 $18 {[%emt 0:07:17]} fxe6 {[%emt 0:00:01]} 19. Nf3 {[%emt 0:00:09]} Kf7 {[%emt 0:08:06]} 20. Ne2 {[%emt 0:03:26] Pair of Knights!} (20. Nxh4 Kg8 21. Nf3 Rf8) 20... e5 {[%emt 0:00:59]} 21. Rxc8 {[%emt 0:04:37]} (21. Nxh4 $6 Rxc1 22. Rxc1 Bd8 $18) 21... Qxc8 {[%emt 0:00:22]} 22. Rc1 {[%emt 0:00:11] Inhibits Qc2.} ({Not} 22. Nxh4 Qc2 $16) 22... Qd7 {[%emt 0:00:34]} 23. Bg5 {[%emt 0:00:21]} Kg8 {[%emt 0:02:43][%cal Of6e4]} 24. Bxh4 {[%emt 0:04:17]} d5 {[%emt 0:01:45]} 25. Bxf6 {[%emt 0:08:04]} Bxf6 {[%emt 0:02:39]} 26. Ng3 {[%emt 0:00:18]} Rh8 {[%emt 0:00:13]} 27. Qb6 {[%emt 0:00:49]} dxe4 {[%emt 0:01:26]} 28. dxe4 {[%emt 0:03:22]} Bd8 {[%emt 0:02:28] Inhibits Qc7.} 29. Qc5 {[%emt 0:03:42]} Rh6 {[%emt 0:00:12] [#] Threatens to win with ...Bb6.} 30. Qxe5 {[%emt 0:03:26]} Re6 {[%emt 0:00:23]} 31. Qf5 {[%emt 0:02:28]} Qe7 {[%emt 0:01:59]} (31... Re7 $16 32. Qh5 Bxe4) 32. Rf1 {[%emt 0:03:39]} (32. Rd1 $18 Rd6 33. Rxd6 Qxd6 34. e5 (34. Ne5 Bf6 $11) 34... Qd1+ 35. Kh2) 32... Rf6 $16 {[%emt 0:00:55]} 33. Qg4 {[%emt 0:03:35]} Qe8 {[%emt 0:01:26]} (33... Qe6 $16) 34. Kh1 {[%emt 0:02:13]} (34. Rd1 $18 {Black must now prevent Nf5.} Bb6+ 35. Kh1) 34... Bc7 $2 {[%emt 0:00:52][%mdl 8192] Black cannot hold the game after this.} (34... Rg6 $16 35. Qf4 Rf6) 35. Nf5 $18 {[%emt 0:00:34][%csl Gf5][%cal Rg4g7,Bg3f5,Bf5h6,Bh6g4][%mdl 32] [#]} g6 {[%emt 0:00:34]} 36. Qg5 {[%emt 0:02:46]} Bd8 {[%emt 0:00:32][%cal Of6f5]} 37. Nh6+ {[%emt 0:00:15]} Kg7 {[%emt 0:02:58][%cal Of6f3] aiming for ...Rxf3!} 38. Ng4 {[%emt 0:00:23]} Rf8 {[%emt 0:01:55]} 39. Qh6+ {[%emt 0:04:15]} Kg8 {[%emt 0:00:01]} 40. e5 {[%emt 0:00:26]} (40. Re1 $142) 40... Rf5 $2 {[%emt 0:00:41]} (40... Bxf3 {was called for.} 41. Rxf3 Rxf3 42. gxf3 Qf7) 41. Qe3 {[%emt 0:02:10] And now Nh6+ would win.} Kg7 {[%emt 0:00:26]} (41... Rf8 $142 42. e6 Bd5) 42. Rd1 {[%emt 0:00:44][%cal Bf1d1,Bd1d7,Bd7e7][%mdl 32]} Bxf3 {[%emt 0:01:32]} 43. gxf3 {[%emt 0:00:06]} (43. Qh6+ $142 Kg8 44. Rxd8 Qxd8 45. Qxg6+ (45. gxf3 Qd1+ 46. Kh2 Qe2+ 47. Kg1 Qe1+ 48. Kh2 Rxf3 $11) 45... Kh8 46. Qxf5 Bxg4 47. Qxg4) 43... Be7 $2 {[%emt 0:00:24]} (43... Bg5 44. Qa7+ Rf7 45. Qxa6 Rd7) 44. e6 {[%emt 0:00:44] Hoping for Rd7.} Qh8 {[%emt 0:00:38]} 45. Qc3+ {[%emt 0:01:48]} Rf6 {[%emt 0:00:32]} 46. Kg2 {[%emt 0:00:15] White wants to mate with Rd7.} Qf8 {[%emt 0:00:29]} 47. Rd7 {[%emt 0:00:48] White mates.} Kg8 {[%emt 0:00:26]} 48. Rxe7 {[%emt 0:00:28]} Rxf3 {[%emt 0:00:31]} 49. Qg7+ {[%emt 0:01:05] Weighted Error Value: White=0.20 (precise) /Black=0.59} (49. Qxf3 $142 Qxe7 50. Qa8+ Kh7 51. Qxa6 g5 52. Qc8 Kg7 53. Qc3+ Kg8 54. Nf6+ Kf8 55. Qc8+ Kg7 56. Ng4) 1-0

[Event "ESP-ch Teams Primera 2022"]
[Site "Sanxenxo Pontevedra"]
[Date "2022.09.21"]
[Round "5.23"]
[White "Guadamuro Torrente, Anabel"]
[Black "Rodriguez Ferreiros, Andres"]
[Result "1/2-1/2"]
[ECO "A46"]
[WhiteElo "2102"]
[BlackElo "2110"]
[Annotator "TA"]
[PlyCount "41"]
[EventDate "2022.09.17"]
[EventType "team-tourn"]
[EventCountry "ESP"]
[SourceTitle "playchess.com"]
[Source "ChessBase"]
[SourceQuality "1"]
[TimeControl "5400+30"]

{[%evp 23,24,-14,-8]} 1. d4 Nf6 2. Nf3 e6 3. e3 a6 4. c4 d5 5. Nc3 c5 6. dxc5 Bxc5 7. a3 dxc4 8. Qxd8+ Kxd8 9. Bxc4 b5 10. Be2 Bb7 11. O-O Ke7 12. b4 Bd6 {[#]} {Predecessor:} 13. Bb2 $146 {D27: Queen's Gambit Accepted: Classical main line: 7 e4!? and 7 a4.} Nc6 14. Rfd1 Rhd8 15. Kf1 Rd7 16. h3 Rad8 17. Ke1 Ne5 18. Nxe5 Bxe5 19. Rxd7+ Rxd7 20. f3 Bg3+ 21. Kf1 {1-0 (49) Maly,A (2371)-Suvorov,L (2279) Chess.com INT 2020} 1/2-1/2